bitfinex-derivatives/quotes_ETHF0:USTF0_20210401
["timestamp","ask_amount","ask_price","bid_price","bid_amount"]
[1617293352194,47.94415,1944.8,1944.7,2.11265]
[1617293352594,17.94415,1944.8,1944.7,2.11265]
[1617293354596,17.94415,1944.8,1944.7,2.03615]
[1617293354796,15.60995,1944.8,1944.7,2.03615]
[1617293354997,2.36685,1944.8,1944.7,2.03615]
[1617293355799,14.33,1945.1,1944.7,2.03615]
[1617293355998,14.33,1945.1,1945.0,2.90695]
[1617293356198,9.7498,1945.1,1945.0,4.33295]
[1617293356399,2.90695,1945.3,1945.0,4.33295]
[1617293356599,1.0413,1945.6,1945.1,2.0]
[1617293356799,1.0413,1945.6,1945.0,4.33295]
[1617293356800,1.0413,1945.6,1945.0,24.33295]
[1617293357200,1.0413,1945.6,1945.5,65.0919]
[1617293358000,1.0413,1945.6,1945.5,67.99885]
[1617293358403,0.0001,1945.6,1945.5,87.99885]
[1617293359003,0.0001,1945.6,1945.5,87.94015]
[1617293359203,0.0001,1945.6,1945.5,85.94745]
[1617293360007,0.0001,1945.6,1945.5,22.90695]
[1617293360806,0.0001,1945.6,1945.5,20.0]
[1617293361406,0.0001,1945.6,1945.5,16.6606]
[1617293361605,0.0001,1945.6,1945.5,13.8359]
[1617293361807,0.0001,1945.6,1945.5,13.4591]
[1617293362007,2.90705,1945.6,1945.5,12.2455]
[1617293362207,36.00705,1945.6,1945.5,10.3506]
[1617293362405,36.00705,1945.6,1945.5,1.6431]
[1617293362607,36.00705,1945.6,1943.8,68.66125]
[1617293362806,40.07025,1945.6,1943.8,68.39925]
[1617293363006,40.07025,1945.6,1944.2,19.794]
[1617293363206,40.07025,1945.6,1944.2,18.732]
[1617293363407,40.07025,1945.6,1943.8,67.38825]
[1617293363808,38.07025,1945.6,1944.3,20.0]
[1617293364009,33.6841,1945.6,1944.7,2.90695]
[1617293364208,31.1001,1945.6,1943.8,67.38825]
[1617293364810,2.0,1945.5,1943.8,67.38825]
[1617293365010,30.0,1945.4,1943.8,67.38825]
[1617293365211,31.1,1945.4,1943.8,67.38825]
[1617293365411,33.1,1945.4,1943.8,67.38825]
[1617293366012,33.1,1945.4,1944.5,2.90695]
[1617293367814,32.0,1945.4,1944.5,2.90695]
[1617293368016,2.90695,1944.6,1944.5,2.90695]
[1617293368217,30.0,1945.5,1944.5,2.90695]
[1617293368417,13.9936,1945.6,1944.5,2.90695]
[1617293369018,43.9936,1945.6,1944.5,2.90695]
[1617293369816,13.9936,1945.6,1944.5,2.90695]
[1617293370018,13.9936,1945.6,1945.2,2.90695]
[1617293370218,13.9936,1945.6,1945.2,4.38745]
[1617293371323,13.9936,1945.6,1945.0,78.1562]
[1617293371722,30.0,1945.5,1943.7,2.0]
[1617293371923,30.0,1945.5,1943.7,63.9105]
[1617293372122,31.1,1945.5,1944.5,2.90695]
[1617293372322,33.1,1945.5,1944.5,2.90695]
[1617293372921,32.0,1945.5,1944.5,2.90695]
[1617293373121,33.1,1945.5,1944.5,2.90695]
[1617293373622,33.1,1945.5,1943.7,61.9105]
[1617293374022,2.90695,1944.1,1943.7,64.81745]
[1617293374222,4.39225,1944.1,1943.7,2.90695]
[1617293375222,2.90695,1944.1,1943.7,2.90695]
[1617293375824,30.0,1945.0,1943.8,70.9311]
[1617293376024,30.0,1945.0,1944.5,2.90695]
[1617293376826,30.0,1945.0,1944.4,1.1196]
[1617293377026,30.0,1945.0,1943.8,72.137]
[1617293377626,30.0,1945.3,1943.8,72.137]
[1617293377827,15.1988,1945.4,1943.8,72.137]
[1617293378027,14.0988,1945.4,1943.8,72.137]
[1617293378227,14.0988,1945.4,1944.5,2.90695]
[1617293378428,14.0988,1945.4,1944.5,4.00435]
[1617293379034,14.0988,1945.4,1944.8,76.3911]
[1617293380033,14.0988,1945.4,1944.8,76.2731]
[1617293380834,30.0,1945.3,1944.8,76.2731]
[1617293381034,30.0,1945.3,1943.8,1.2059]
[1617293381235,31.5475,1945.3,1943.7,71.3114]
[1617293382239,31.5475,1945.3,1944.2,2.90695]
[1617293382436,32.6475,1945.3,1944.2,2.90695]
[1617293384141,2.90695,1944.3,1944.2,2.90695]
[1617293387446,15.1988,1945.4,1944.2,2.90695]
[1617293387646,15.1988,1945.4,1944.2,3.98975]
[1617293387846,15.1988,1945.4,1944.5,63.0371]
[1617293388247,15.1988,1945.4,1945.0,2.90695]
[1617293388446,15.1988,1945.4,1945.0,4.31525]
[1617293390148,2.90695,1945.1,1945.0,4.31525]
[1617293391448,2.90695,1945.1,1945.0,2.95725]
[1617293391854,2.90695,1945.1,1945.0,1.80125]
[1617293393354,2.90695,1945.1,1945.0,0.39295]
[1617293395258,2.90695,1945.1,1944.5,63.0371]
[1617293396259,2.90695,1945.1,1944.9,2.90695]
[1617293396458,2.90695,1945.1,1944.9,4.40545]
[1617293397058,30.0,1945.0,1944.9,1.4985]
[1617293397258,2.90695,1945.1,1944.9,1.4985]
[1617293397459,4.00695,1945.1,1944.9,1.4985]
[1617293397659,4.00695,1945.1,1944.2,1.0828]
[1617293397858,34.00695,1945.1,1944.1,67.1048]
[1617293398058,34.00695,1945.1,1944.3,20.0]
[1617293398259,31.1,1945.1,1944.5,2.90695]
[1617293398659,31.1,1945.1,1944.1,67.1048]
[1617293399664,33.1,1945.1,1944.1,67.1048]
[1617293400063,31.1,1945.1,1944.1,67.1048]
[1617293400261,2.90695,1944.4,1944.1,70.01175]
[1617293402262,2.90695,1944.4,1944.3,2.90695]
[1617293402461,7.09305,1944.3,1944.1,67.1048]
[1617293403563,7.09305,1944.3,1944.2,20.0]
[1617293403764,7.09305,1944.3,1944.2,21.0695]
[1617293404364,4.69925,1944.3,1944.2,23.97645]
[1617293404564,3.50235,1944.3,1944.2,23.97645]
[1617293404763,1.10855,1944.3,1944.2,25.97645]
[1617293404963,5e-05,1944.3,1944.2,25.97645]
[1617293405163,15.1988,1945.4,1944.2,25.97645]
[1617293405564,1.1,1945.4,1945.0,58.3487]
[1617293405766,116.0655,1946.3,1945.0,59.386]
[1617293405964,1.1,1945.9,1945.0,59.386]
[1617293406165,1.1,1945.9,1945.0,61.386]
[1617293406364,1.1,1945.9,1945.4,2.90695]
[1617293406565,1.1,1945.9,1945.4,4.05445]
[1617293407167,1.1,1945.9,1945.5,20.0]
[1617293408366,17.93175,1945.6,1945.5,20.0]
[1617293408574,47.93175,1945.6,1945.5,19.65]
[1617293408768,47.93175,1945.6,1945.5,18.1458]
[1617293408979,47.93175,1945.6,1945.5,17.4357]
[1617293409171,47.93175,1945.6,1945.5,13.5459]
[1617293409371,49.04677952,1945.6,1945.5,6.5562]
[1617293409569,49.04677952,1945.6,1945.5,5.314]
[1617293409769,49.06181199,1945.6,1945.5,3.6082]
[1617293409968,49.09187557,1945.6,1944.3,83.4064]
[1617293410166,50.41257557,1945.6,1944.3,83.4064]
[1617293410366,2.90695,1944.4,1944.3,83.4064]
[1617293411370,0.01503135,1945.5,1944.3,83.4064]
[1617293411569,15.03983097,1945.6,1944.3,84.5061]
[1617293412373,15.0248,1945.6,1945.0,2.90695]
[1617293412571,15.0248,1945.6,1945.0,4.20985]
[1617293412772,15.0248,1945.6,1945.1,83.9523]
[1617293413371,15.0248,1945.6,1945.1,83.6883]
[1617293413972,15.0248,1945.6,1945.1,83.3299]
[1617293414171,46.1248,1945.6,1943.7,3.3401]
[1617293414372,47.5152,1945.6,1944.0,64.055]
[1617293415171,47.5152,1945.6,1944.0,63.8856]
[1617293416373,2.90695,1944.1,1944.0,65.50195]
[1617293416574,4.01615,1944.1,1944.0,2.90695]
[1617293418175,4.01615,1944.1,1943.3,81.036]
[1617293418374,1.1092,1944.1,1943.4,2.90695]
[1617293418775,30.0,1944.4,1943.4,2.90695]
[1617293420476,2.90695,1943.5,1943.4,2.90695]
[1617293421675,1.0272,1944.5,1943.4,2.90695]
[1617293421875,1.1,1944.6,1943.4,4.09815]
[1617293422475,1.1,1944.6,1944.0,2.90695]
[1617293422675,1.1,1944.6,1944.0,3.96855]
[1617293423674,1.1,1944.6,1944.0,2.90695]
[1617293423875,1.1,1944.6,1943.3,81.036]
[1617293424075,2.4052,1944.6,1943.3,81.036]
[1617293424275,30.0,1944.5,1943.3,81.036]
[1617293424475,31.0294,1944.5,1943.4,2.90695]
[1617293424676,32.1294,1944.5,1943.4,2.90695]
[1617293425478,31.1,1944.5,1943.4,2.90695]
[1617293426376,31.1,1944.5,1943.8,2.90695]
[1617293426577,32.1408,1944.5,1943.8,2.90695]
[1617293426977,32.1408,1944.5,1943.3,81.036]
[1617293427179,33.2036,1944.5,1943.3,81.036]
[1617293427779,0.0150848,1944.4,1943.3,81.036]
[1617293428478,2.90695,1943.4,1943.3,81.036]
[1617293429078,2.90695,1943.4,1943.1,2.90695]
[1617293430480,2.90695,1943.2,1943.1,2.90695]
[1617293430879,34.03525,1943.2,1942.2,4.15239052]
[1617293431081,102.31555,1943.2,1942.2,4.15239052]
[1617293431680,102.31555,1943.2,1942.1,4.15361364]
[1617293431881,102.31555,1943.2,1942.1,3.20871364]
[1617293432083,102.31555,1943.2,1941.9,1.81568946]
[1617293432482,99.4086,1943.2,1942.0,2.90695]
[1617293432882,100.5086,1943.2,1942.0,2.90695]
[1617293434583,2.90695,1942.7,1942.6,2.90695]
[1617293434783,2.90695,1942.7,1942.6,4.31315]
[1617293434984,0.01509734,1943.4,1942.7,64.4431]
[1617293435183,0.01509594,1943.6,1942.7,64.4431]
[1617293435384,14.02049418,1943.8,1942.7,64.4431]
[1617293436086,14.0054,1943.8,1942.7,64.4431]
[1617293436484,2.90695,1943.7,1943.6,2.90695]
[1617293436688,2.90695,1943.7,1943.6,4.15885]
[1617293438185,2.90695,1943.7,1943.6,2.90695]
[1617293438785,2.90695,1943.7,1942.7,64.4431]
[1617293439990,64.4527,1944.2,1942.8,2.0]
[1617293440588,64.4527,1944.2,1943.6,2.90695]
[1617293440790,64.4527,1944.2,1943.6,3.94895]
[1617293442490,15.4573,1944.5,1944.1,2.90695]
[1617293442690,15.4573,1944.5,1944.1,4.44645]
[1617293443290,14.3573,1944.5,1944.1,4.44645]
[1617293444291,14.3573,1944.5,1944.2,20.0]
[1617293444492,14.3573,1944.5,1944.4,2.90695]
[1617293444892,14.3573,1944.5,1944.4,80.76195]
[1617293445292,14.3573,1944.5,1944.4,100.76195]
[1617293445492,14.9525,1944.6,1944.4,100.76195]
[1617293446494,2.90695,1944.5,1944.4,100.76195]
[1617293448798,14.9525,1944.6,1944.4,100.76195]
[1617293450699,14.9525,1944.6,1944.4,22.90695]
[1617293450900,2.90695,1945.0,1944.4,22.90695]
[1617293451100,2.90695,1945.0,1944.5,2.0]
[1617293451303,2.90695,1945.0,1944.5,3.0078]
[1617293451699,1.1,1945.6,1944.5,1.0078]
[1617293451902,1.0333,1945.7,1945.3,66.2792]
[1617293452100,1.0333,1945.7,1945.3,67.4809]
[1617293452499,3.94025,1945.7,1945.6,2.90695]
[1617293453499,3.94025,1945.7,1945.6,22.90695]
[1617293453901,3.94025,1945.7,1945.6,20.0]
[1617293459101,33.94025,1945.7,1945.6,18.99]
[1617293459303,35.04025,1945.7,1945.6,18.99]
[1617293459502,35.04025,1945.7,1945.6,17.9824]
[1617293459704,35.05528608,1945.7,1945.6,17.9824]
[1617293460103,37.05528608,1945.7,1945.6,17.9824]
[1617293460503,5.05528608,1945.7,1945.6,17.9824]
[1617293460905,5.04025,1945.7,1945.6,17.9824]
[1617293461103,35.04025,1945.7,1945.6,17.9824]
[1617293461506,35.05528514,1945.7,1945.6,17.9824]
[1617293461704,36.08518514,1945.7,1945.6,17.9824]
[1617293461908,38.08518514,1945.7,1945.6,14.966]
[1617293462106,38.08518514,1945.7,1945.6,10.6104]
[1617293462306,38.1302972,1945.7,1945.6,10.6104]
[1617293462505,36.22052182,1945.7,1945.6,10.6104]
[1617293462905,36.22052182,1945.7,1945.6,10.3511]
[1617293463507,36.13029705,1945.7,1945.6,10.3511]
[1617293465509,36.13029705,1945.7,1945.6,9.2181]
[1617293465510,35.10039705,1945.7,1945.6,9.2181]
[1617293465909,38.47169705,1945.7,1945.6,9.2181]
[1617293466110,36.47169705,1945.7,1945.6,9.2181]
[1617293466310,36.47169705,1945.7,1945.6,8.1998]
[1617293466513,122.69309705,1945.7,1945.6,8.1998]
[1617293466712,122.69309705,1945.7,1945.6,6.3616]
[1617293466912,122.69309705,1945.7,1945.6,4.6457]
[1617293467110,122.69309705,1945.7,1945.6,4.3665]
[1617293467811,122.69309705,1945.7,1945.6,3.3368]
[1617293469214,122.66300986,1945.7,1945.6,3.3368]
[1617293470113,36.44160986,1945.7,1945.6,3.3368]
[1617293470312,35.07030986,1945.7,1945.6,3.3368]
[1617293470512,35.10036964,1945.7,1945.6,3.3368]
[1617293470712,35.07030962,1945.7,1945.6,3.3368]
[1617293471213,5.05527926,1945.7,1945.6,3.3368]
[1617293471412,3.94025,1945.7,1945.6,3.3368]
[1617293472613,33.94025,1945.7,1945.6,3.3368]
[1617293472815,5.04025,1945.7,1945.6,3.3368]
[1617293473713,5.04025,1945.7,1945.6,1.8122]
[1617293473915,35.07030856,1945.7,1945.6,0.7922]
[1617293474112,37.07030856,1945.7,1945.6,0.7922]
[1617293474317,37.19055018,1945.7,1945.6,0.7922]
[1617293474814,35.25067072,1945.7,1945.6,0.7922]
[1617293475014,35.10037054,1945.7,1945.6,0.7922]
[1617293476316,35.07030837,1945.7,1945.6,0.7922]
[1617293476922,35.05527839,1945.7,1945.6,0.7922]
[1617293477418,35.04025,1945.7,1945.6,0.7922]
[1617293478517,5.04025,1945.7,1945.6,0.7922]
[1617293479321,35.04025,1945.7,1945.6,0.7922]
[1617293480122,37.04025,1945.7,1945.3,71.1834]
[1617293480422,37.04025,1945.7,1945.3,70.0013]
[1617293480620,32.1333,1945.7,1945.6,20.0]
[1617293480821,32.1333,1945.7,1945.3,70.0013]
[1617293481021,2.1333,1945.7,1945.3,70.0013]
[1617293481223,2.1333,1945.7,1945.6,20.0]
[1617293481422,2.1333,1945.7,1945.6,21.0992]
[1617293481624,2.1333,1945.7,1945.6,1.0992]
[1617293482024,2.1333,1945.7,1945.6,21.0992]
[1617293482423,1.0333,1945.7,1945.6,21.0992]
[1617293482823,3.94025,1945.7,1945.6,24.00615]
[1617293483324,2.90695,1945.7,1945.6,24.00615]
[1617293484627,14.1423,1945.8,1945.6,24.00615]
[1617293486527,118.8424,1945.8,1945.6,21.75825]
[1617293486727,2.90695,1945.7,1945.6,18.089]
[1617293486928,33.97325,1945.7,1945.6,18.089]
[1617293487129,33.97325,1945.7,1945.6,17.3257]
[1617293487329,33.97325,1945.7,1945.6,15.2957]
[1617293487829,3.97325,1945.7,1945.6,15.2957]
[1617293488230,3.97325,1945.7,1945.6,13.0965]
[1617293488430,2.90695,1945.7,1945.6,13.0965]
[1617293489431,14.1423,1945.8,1945.6,13.0965]
[1617293490734,14.1423,1945.8,1945.7,2.90695]
[1617293493439,25.1423,1945.8,1945.7,2.90695]
[1617293497142,25.1423,1945.8,1945.7,4.19785]
[1617293498541,11.0,1945.8,1945.7,4.19785]
[1617293498742,14.6786,1947.0,1945.7,6.19785]
[1617293498941,16.72965,1946.8,1946.7,2.90695]
[1617293499142,16.72965,1946.8,1946.7,4.10015]
[1617293499542,16.72965,1946.8,1946.7,24.10015]
[1617293499742,13.8227,1946.8,1946.7,24.10015]
[1617293500145,13.1779,1946.8,1946.7,24.10015]
[1617293500343,14.6786,1947.0,1946.7,24.10015]
[1617293500945,14.6786,1947.0,1946.9,2.90695]
[1617293501843,14.6786,1947.0,1946.9,22.90695]
[1617293502044,15.7137,1947.0,1946.9,22.90695]
[1617293502245,14.6786,1947.0,1946.9,22.90695]
[1617293502646,13.4792,1947.0,1946.9,22.90695]
[1617293503146,12.2798,1947.0,1946.9,22.90695]
[1617293504349,12.2798,1947.0,1946.9,20.0]
[1617293504947,12.2798,1947.0,1946.9,22.90695]
[1617293505749,12.2798,1947.0,1946.9,24.25855]
[1617293506150,5.2753,1947.0,1946.9,24.25855]
[1617293506349,14.8288,1947.2,1946.9,24.25855]
[1617293506550,14.8288,1947.2,1947.0,85.7523]
[1617293507154,14.8288,1947.2,1947.1,2.90695]
[1617293507352,7.3398,1947.2,1947.1,22.90695]
[1617293507754,2.90695,1947.7,1947.1,22.90695]
[1617293509153,2.90695,1947.9,1947.6,2.64525]
[1617293509352,2.90695,1947.9,1947.6,3.79995]
[1617293509952,4.00695,1947.9,1947.7,20.0]
[1617293511154,1.0309,1948.3,1947.8,2.90695]
[1617293511354,1.0309,1948.3,1947.9,82.0228]
[1617293511955,1.0309,1948.3,1948.0,20.0]
[1617293512154,1.0309,1948.3,1948.0,21.2215]
[1617293512753,1.1,1948.7,1948.0,21.2215]
[1617293512956,14.2808,1949.1,1948.0,21.2215]
[1617293512957,15.3808,1949.1,1948.0,21.2215]
[1617293513154,4.00695,1948.7,1948.0,21.2215]
[1617293513355,2.90695,1948.7,1948.0,21.2215]
[1617293514156,2.90695,1948.7,1948.0,20.0]
[1617293514756,4.49795,1948.7,1948.0,20.0]
[1617293514956,35.59795,1948.7,1948.0,20.0]
[1617293515156,2.90695,1948.1,1948.0,20.0]
[1617293515354,4.16535,1948.1,1948.0,20.0]
[1617293516561,2.90695,1948.1,1948.0,20.0]
[1617293517364,14.8572,1948.3,1948.0,20.0]
[1617293517562,14.8572,1948.3,1948.0,21.5171]
[1617293518966,14.8572,1948.3,1948.2,74.2934]
[1617293519166,14.8572,1948.3,1948.2,77.20035]
[1617293519766,14.8572,1948.3,1948.2,97.20035]
[1617293520370,14.8572,1948.3,1948.2,98.57455]
[1617293520769,3.2608,1948.3,1948.2,98.57455]
[1617293520969,1.0237,1948.5,1948.2,98.57455]
[1617293521169,2.90695,1948.7,1948.4,2.90695]
[1617293521870,1.1,1948.9,1948.4,2.90695]
[1617293522072,14.2808,1949.1,1948.5,20.0]
[1617293522473,14.2808,1949.1,1948.9,81.3839]
[1617293522672,14.2808,1949.1,1948.9,83.0165]
[1617293523073,14.2808,1949.1,1948.9,1.6326]
[1617293523274,2.90695,1949.0,1948.9,4.53955]
[1617293523473,14.2808,1949.1,1948.9,4.25445]
[1617293523672,14.2808,1949.1,1948.9,3.95065]
[1617293523873,14.2808,1949.1,1948.9,23.95065]
[1617293525474,17.72155,1949.4,1948.9,23.95065]
[1617293526974,47.72155,1949.4,1948.9,23.95065]
[1617293527177,2.90695,1949.0,1948.9,23.95065]
[1617293527779,2.90695,1949.0,1948.9,22.94065]
[1617293528175,4.00695,1949.0,1948.9,22.94065]
[1617293528377,4.00695,1949.0,1948.9,22.66615]
[1617293529577,1.1,1949.0,1948.9,22.66615]
[1617293529777,14.8146,1949.4,1949.0,66.2186]
[1617293529977,14.8146,1949.4,1949.0,67.3782]
[1617293530578,14.8146,1949.4,1949.1,20.0]
[1617293531278,14.8146,1949.4,1949.3,2.90695]
[1617293532081,14.8146,1949.4,1949.3,22.90695]
[1617293533285,17.72155,1949.4,1949.3,22.90695]
[1617293533784,14.8146,1949.4,1949.3,22.90695]
[1617293535387,17.72155,1949.4,1949.3,22.90695]
[1617293537786,18.82155,1949.4,1949.3,20.0]
[1617293538186,20.82155,1949.4,1949.3,18.4812]
[1617293538596,20.82155,1949.4,1949.3,16.385]
[1617293538790,20.82155,1949.4,1949.3,14.3038]
[1617293539393,20.82155,1949.4,1949.3,14.0538]
[1617293539791,20.82155,1949.4,1949.3,12.5238]
[1617293540594,50.82155,1949.4,1949.3,12.5238]
[1617293541393,48.82155,1949.4,1949.3,12.5238]
[1617293541791,18.82155,1949.4,1949.3,12.5238]
[1617293542392,48.82155,1949.4,1949.3,12.5238]
[1617293543194,18.82155,1949.4,1949.3,12.5238]
[1617293543395,15.9146,1949.4,1949.3,15.43075]
[1617293545496,18.82155,1949.4,1949.3,15.43075]
[1617293550502,15.9146,1949.4,1949.3,15.43075]
[1617293550703,14.8146,1949.4,1949.3,15.43075]
[1617293553604,14.8146,1949.4,1949.3,81.79155]
[1617293555006,25.8146,1949.4,1949.3,81.79155]
[1617293562114,25.8146,1949.4,1949.3,15.43075]
[1617293566522,25.8146,1949.4,1949.3,95.97315]
[1617293571628,25.8146,1949.4,1949.3,15.43075]
[1617293572228,27.2184,1949.4,1949.3,15.43075]
[1617293572429,27.2184,1949.4,1949.3,13.54505]
[1617293572627,27.2184,1949.4,1949.3,12.10245]
[1617293572828,27.2184,1949.4,1949.3,12.02915]
[1617293573228,27.2184,1949.4,1949.3,9.1222]
[1617293573432,109.8258,1949.4,1949.3,8.0834]
[1617293573628,110.9258,1949.4,1949.3,8.0834]
[1617293573828,143.83275,1949.4,1949.3,8.0834]
[1617293574228,143.83275,1949.4,1949.3,7.5297]
[1617293574433,145.83275,1949.4,1949.3,7.5297]
[1617293574633,145.83275,1949.4,1949.3,7.0593]
[1617293574836,145.83275,1949.4,1949.3,6.7691]
[1617293575235,145.83275,1949.4,1949.3,6.6664]
[1617293575635,143.83275,1949.4,1949.3,6.6664]
[1617293576037,143.83275,1949.4,1949.3,6.3062]
[1617293577239,143.83275,1949.4,1949.3,6.2401]
[1617293577639,113.83275,1949.4,1949.3,5.4091]
[1617293578739,143.83275,1949.4,1949.3,5.4091]
[1617293580242,143.83275,1949.4,1949.3,4.8944]
[1617293582144,113.83275,1949.4,1949.3,4.8944]
[1617293582746,31.22535,1949.4,1949.3,4.8944]
[1617293582947,29.82155,1949.4,1949.3,4.8944]
[1617293583548,28.72155,1949.4,1949.3,4.8944]
[1617293583947,28.72155,1949.4,1949.3,7.80135]
[1617293587850,25.8146,1949.4,1949.3,7.80135]
[1617293588249,25.8146,1949.4,1949.3,9.37525]
[1617293589350,57.2525,1949.4,1949.3,3.9512]
[1617293589550,70.019,1949.3,1947.6,70.019]
[1617293589752,30.0,1949.2,1946.0,4.02755392]
[1617293589953,30.0,1949.2,1946.1,64.4441]
[1617293589954,64.4441,1948.4,1946.1,64.4441]
[1617293590153,30.0,1948.3,1947.5,20.0]
[1617293590354,33.1,1948.3,1946.1,64.4441]
[1617293590755,47.1396,1948.3,1946.2,20.0]
[1617293590955,47.1396,1948.3,1946.2,50.0]
[1617293590956,45.1396,1948.3,1946.2,50.0]
[1617293591358,45.1396,1948.3,1946.3,2.0]
[1617293591954,2.90695,1947.8,1947.7,2.90695]
[1617293592554,15.1396,1948.3,1947.7,2.90695]
[1617293592956,15.1396,1948.3,1947.8,20.0]
[1617293593556,15.1396,1948.3,1947.8,21.3248]
[1617293593757,14.0396,1948.3,1947.8,21.3248]
[1617293593959,14.0396,1948.3,1948.2,2.90695]
[1617293594759,73.1121,1948.9,1948.2,24.19725]
[1617293595161,13.9773,1949.0,1948.2,24.19725]
[1617293595761,15.0773,1949.0,1948.2,24.19725]
[1617293595962,15.0773,1949.0,1948.9,2.90695]
[1617293596764,15.0773,1949.0,1948.9,22.90695]
[1617293596964,13.9773,1949.0,1948.9,22.90695]
[1617293597966,16.88425,1949.0,1948.9,20.0]
[1617293598165,17.98425,1949.0,1948.9,20.0]
[1617293598965,17.9992486,1949.0,1948.9,20.0]
[1617293599766,17.98425,1949.0,1948.9,20.0]
[1617293599965,17.98425,1949.0,1948.9,22.90695]
[1617293600568,4.00695,1949.0,1948.9,22.90695]
[1617293601167,4.00695,1949.0,1948.9,24.47105]
[1617293601568,80.5654,1949.1,1948.9,24.47105]
[1617293601770,110.5654,1949.1,1948.9,24.47105]
[1617293601974,2.90695,1949.0,1948.9,20.5618]
[1617293602172,32.90695,1949.0,1948.9,18.9977]
[1617293602571,32.93696329,1949.0,1948.9,18.9977]
[1617293602773,34.93696329,1949.0,1948.9,18.9977]
[1617293603174,35.0570243,1949.0,1948.9,18.9977]
[1617293604578,33.0570243,1949.0,1948.9,18.9977]
[1617293605177,2.96697901,1949.0,1948.9,18.9977]
[1617293605377,17.60377901,1949.0,1948.9,18.9977]
[1617293605778,19.00927901,1949.0,1948.9,18.9977]
[1617293605978,49.00927901,1949.0,1948.9,18.9977]
[1617293606379,49.00927901,1949.0,1948.9,18.339]
[1617293606579,51.09932482,1949.0,1948.9,17.4452]
[1617293606780,51.09932482,1949.0,1948.9,16.4301]
[1617293606981,51.42952475,1949.0,1948.9,16.4301]
[1617293607379,50.94925,1949.0,1948.9,16.4301]
[1617293607580,50.94925,1949.0,1948.9,13.7651]
[1617293607781,51.66975333,1949.0,1948.9,13.5151]
[1617293608180,50.94925,1949.0,1948.9,13.5151]
[1617293608380,50.94925,1949.0,1948.9,12.2051]
[1617293608981,50.94925,1949.0,1948.9,11.1741]
[1617293609182,50.94925,1949.0,1948.9,10.9671]
[1617293609381,50.94925,1949.0,1948.9,10.3587]
[1617293609581,51.66972258,1949.0,1948.9,10.3587]
[1617293609782,51.66972258,1949.0,1948.9,9.8844]
[1617293609783,123.20552258,1949.0,1948.9,9.8844]
[1617293609981,123.44698501,1949.0,1948.9,9.8844]
[1617293610381,122.48505,1949.0,1948.9,9.8844]
[1617293610582,123.44702222,1949.0,1948.9,9.8844]
[1617293610982,122.48505,1949.0,1948.9,9.8844]
[1617293611782,123.58505,1949.0,1948.9,9.8844]
[1617293612384,123.58505,1949.0,1948.9,7.0754]
[1617293612582,123.58505,1949.0,1948.9,5.5775]
[1617293614884,122.17955,1949.0,1948.9,5.5775]
[1617293615284,20.64375,1949.0,1948.9,5.5775]
[1617293615485,16.517467,1949.0,1948.9,6.8871]
[1617293615885,16.517467,1949.0,1948.9,6.4084]
[1617293615886,15.88692055,1949.0,1948.9,6.4084]
[1617293616085,18.79387055,1949.0,1948.9,6.4084]
[1617293616285,18.79387055,1949.0,1948.9,5.7018]
[1617293616486,18.79387055,1949.0,1948.9,4.3922]
[1617293616688,18.70379466,1949.0,1948.9,4.3922]
[1617293617588,18.67377185,1949.0,1948.9,2.3619]
[1617293618188,18.70379244,1949.0,1948.9,2.3619]
[1617293618987,18.67377034,1949.0,1948.9,2.3619]
[1617293619789,18.73381131,1949.0,1948.9,2.3619]
[1617293620192,18.67377034,1949.0,1948.9,2.3619]
[1617293620991,48.67377034,1949.0,1948.9,2.3619]
[1617293621191,50.79386213,1949.0,1948.9,2.3619]
[1617293621591,50.94398504,1949.0,1948.9,2.3619]
[1617293621991,51.12414107,1949.0,1948.9,2.3619]
[1617293622892,50.64375,1949.0,1948.9,2.3619]
[1617293623093,135.58505,1949.0,1948.9,2.3619]
[1617293623293,136.06528251,1949.0,1948.9,2.3619]
[1617293623495,133.88518951,1949.0,1948.9,2.3619]
[1617293623696,103.88518951,1949.0,1948.9,2.3619]
[1617293623896,100.82816095,1949.0,1948.9,2.3619]
[1617293624095,103.73511095,1949.0,1948.9,5.26885]
[1617293625096,103.64507257,1949.0,1948.9,5.26885]
[1617293625998,103.64507257,1949.0,1948.9,4.96595]
[1617293626399,103.64507257,1949.0,1948.9,2.059]
[1617293626600,133.64507257,1949.0,1948.9,2.059]
[1617293626800,133.64507257,1949.0,1948.9,1.5466]
[1617293627202,133.73510554,1949.0,1948.9,1.5466]
[1617293627803,135.73510554,1949.0,1948.9,1.5466]
[1617293628005,135.73510554,1949.0,1948.9,1.479]
[1617293628203,135.73510554,1949.0,1948.9,0.4348]
[1617293628404,135.88517969,1949.0,1948.9,0.4348]
[1617293628804,136.06526995,1949.0,1948.9,0.4348]
[1617293629003,150.11696995,1949.0,1948.9,0.4348]
[1617293629906,150.35694086,1949.0,1948.9,0.4348]
[1617293630908,149.63675,1949.0,1948.9,0.4348]
[1617293631307,150.11683632,1949.0,1948.9,0.4348]
[1617293633010,149.63675,1949.0,1948.9,0.4348]
[1617293633310,150.11682475,1949.0,1948.9,0.4348]
[1617293633714,149.93679841,1949.0,1948.9,0.4348]
[1617293633911,149.93679841,1949.0,1945.7,1.6488]
[1617293634113,61.7885,1949.0,1947.9,2.90695]
[1617293634313,75.9119,1948.3,1947.9,2.90695]